bitfinex/quotes_SOLUSD_20220207
["timestamp","ask_amount","ask_price","bid_price","bid_amount"]
[1644197697128,26.1595,113.98,113.88,19.1694]
[1644197698823,26.1595,113.98,113.88,19.4194]
[1644197701227,26.1595,113.98,113.88,13.1694]
[1644197701525,26.1595,113.98,113.88,6.0]
[1644197701726,26.1595,113.98,113.86,45.85173589]
[1644197701727,13.1748,113.94,113.86,45.85173589]
[1644197702128,13.4248,113.94,113.86,39.85173589]
[1644197702627,26.1648,113.94,113.86,39.85173589]
[1644197703029,26.1648,113.94,113.86,46.10173589]
[1644197703229,26.1648,113.94,113.86,45.85173589]
[1644197703629,26.1648,113.94,113.86,6.0]
[1644197703830,26.1648,113.94,113.83,15.25572724]
[1644197704029,28.35163917,113.94,113.83,15.25572724]
[1644197704430,28.35163917,113.94,113.83,21.25572724]
[1644197704638,28.35163917,113.94,113.84,34.99686466]
[1644197704830,26.1648,113.94,113.84,34.99686466]
[1644197705030,26.1648,113.94,113.84,40.99686466]
[1644197705231,26.1648,113.94,113.84,50.2519919]
[1644197705433,26.1648,113.94,113.84,56.2519919]
[1644197705630,26.1648,113.94,113.84,56.5019919]
[1644197705831,12.99,113.94,113.84,56.5019919]
[1644197706031,12.74,113.94,113.84,56.5019919]
[1644197707133,12.74,113.94,113.84,56.2519919]
[1644197707337,26.1641,113.94,113.84,56.2519919]
[1644197708957,26.1641,113.94,113.84,54.17156466]
[1644197709255,26.1641,113.94,113.85,2.08042724]
[1644197709456,26.1641,113.94,113.85,15.25372724]
[1644197709658,26.1641,113.94,113.85,21.25372724]
[1644197710158,12.99,113.94,113.86,2.08042724]
[1644197710361,12.99,113.94,113.86,2.33042724]
[1644197710562,12.99,113.94,113.86,8.33042724]
[1644197710959,12.99,113.94,113.87,13.1714]
[1644197711161,12.99,113.94,113.88,46.73212836]
[1644197711561,12.99,113.94,113.88,52.73212836]
[1644197712362,12.99,113.94,113.88,46.73212836]
[1644197712563,0.25,113.94,113.88,46.73212836]
[1644197712764,0.25,113.96,113.88,66.15272836]
[1644197713163,59.539,113.97,113.88,65.90272836]
[1644197713763,59.539,113.97,113.88,66.15272836]
[1644197714563,60.79065495,113.97,113.88,66.15272836]
[1644197714763,60.79065495,113.97,113.88,65.90272836]
[1644197714963,61.22095495,113.97,113.88,68.2331556]
[1644197715163,46.799,113.97,113.88,68.2331556]
[1644197715765,12.99,113.97,113.88,68.2331556]
[1644197716572,12.74,113.97,113.88,68.2331556]
[1644197717265,1.25165495,114.0,113.88,80.9731556]
[1644197717464,1.25165495,114.0,113.89,4.388]
[1644197717666,1.25165495,114.0,113.92,13.1648]
[1644197717866,1.25165495,114.0,113.93,41.04537696]
[1644197718066,74.16545495,114.01,113.93,47.04537696]
[1644197718867,74.16545495,114.01,113.93,41.04537696]
[1644197719068,74.16545495,114.01,113.93,54.21007696]
[1644197719868,1.25165495,114.0,113.93,54.21007696]
[1644197720270,1.50165495,114.0,113.93,54.21007696]
[1644197721472,14.66795495,114.0,113.93,54.21007696]
[1644197722474,14.66795495,114.0,113.93,41.04537696]
[1644197722674,27.40795495,114.0,113.93,41.04537696]
[1644197722875,27.40795495,114.0,113.91,13.1669]
[1644197722876,1.25165495,113.99,113.91,13.1669]
[1644197723074,14.41955495,113.99,113.91,13.1669]
[1644197723272,14.41955495,113.99,113.9,24.2284]
[1644197723273,12.74,113.98,113.9,24.2284]
[1644197723475,12.74,113.98,113.89,13.1695]
[1644197723673,14.24165495,113.98,113.89,13.1695]
[1644197723872,14.24165495,113.98,113.9,48.37180525]
[1644197724074,13.171,113.96,113.89,13.1695]
[1644197724273,25.911,113.96,113.86,24.4374]
[1644197724572,25.911,113.96,113.86,30.6874]
[1644197724772,25.911,113.96,113.87,13.1717]
[1644197724974,1.25165495,113.97,113.87,13.1717]
[1644197725174,1.25165495,113.98,113.88,43.03582361]
[1644197725375,13.1693,113.98,113.88,93.39575085]
[1644197725574,12.74,113.99,113.88,99.64575085]
[1644197725775,1.25165495,114.0,113.88,99.64575085]
[1644197725976,1.25165495,114.0,113.89,23.7471]
[1644197725977,13.99165495,114.0,113.89,23.7471]
[1644197726174,13.99165495,114.0,113.91,13.1675]
[1644197726375,1.25165495,114.0,113.92,43.80665739]
[1644197726575,48.26035495,114.01,113.92,49.80665739]
[1644197726775,1.25165495,114.01,113.92,50.05665739]
[1644197727674,1.25165495,114.01,113.92,49.80665739]
[1644197728075,1.50165495,114.01,113.92,50.05665739]
[1644197729076,14.66685495,114.01,113.93,13.166]
[1644197729476,14.41685495,114.01,113.93,13.166]
[1644197729677,13.1652,114.01,113.93,19.166]
[1644197730879,13.4152,114.01,113.93,19.166]
[1644197731078,13.4152,114.01,113.93,13.416]
[1644197731478,13.4152,114.01,113.93,19.416]
[1644197731679,13.4152,114.01,113.93,19.166]
[1644197732083,13.4152,114.01,113.93,19.416]
[1644197733482,13.4152,114.01,113.93,19.166]
[1644197733882,13.4152,114.01,113.93,19.416]
[1644197734081,13.4152,114.01,113.93,19.166]
[1644197734382,14.66685495,114.01,113.93,19.166]
[1644197734802,14.66685495,114.01,113.93,13.166]
[1644197735203,26.1552,114.01,113.93,13.166]
[1644197735402,27.40685495,114.01,113.92,43.80665739]
[1644197735602,27.40685495,114.01,113.92,49.80665739]
[1644197735804,27.40685495,114.01,113.92,43.80665739]
[1644197737504,1.25165495,114.0,113.92,43.80665739]
[1644197737706,13.1674,113.99,113.92,43.80665739]
[1644197738104,13.99165495,114.0,113.92,63.22365739]
[1644197738305,13.99165495,114.01,113.92,63.22365739]
[1644197738505,13.99165495,114.01,113.92,62.97365739]
[1644197738704,13.99165495,114.01,113.92,56.97365739]
[1644197738907,27.15745495,114.01,113.92,56.97365739]
[1644197739205,27.40745495,114.01,113.92,57.22365739]
[1644197739405,27.40745495,114.01,113.92,63.22365739]
[1644197739805,27.40745495,114.01,113.92,57.22365739]
[1644197740206,1.25165495,114.0,113.92,62.97365739]
[1644197740506,13.1676,113.99,113.92,56.97365739]
[1644197740908,13.4176,113.99,113.92,56.97365739]
[1644197743009,14.66925495,113.99,113.92,56.97365739]
[1644197743610,13.4176,113.99,113.92,56.97365739]
[1644197743909,13.4176,113.99,113.92,57.22365739]
[1644197744112,13.4176,113.99,113.92,63.22365739]
[1644197744309,13.4176,113.99,113.92,57.22365739]
[1644197744710,13.4176,113.99,113.92,63.22365739]
[1644197745411,13.4176,113.99,113.92,62.97365739]
[1644197745711,26.23565495,114.0,113.92,63.22365739]
[1644197745911,24.984,114.0,113.92,63.22365739]
[1644197746110,0.25,114.0,113.92,75.84065739]
[1644197747412,14.66755495,114.01,113.92,75.84065739]
[1644197748012,0.25,114.01,113.92,90.66067002]
[1644197748213,1.50165495,114.02,113.92,90.66067002]
[1644197748813,0.25,114.02,113.93,24.6853]
[1644197749014,0.25,114.02,113.96,47.07098832]
[1644197749216,1.60165495,114.03,113.96,53.32098832]
[1644197749616,1.50165495,114.03,113.96,53.32098832]
[1644197750816,1.50165495,114.03,113.97,13.1603]
[1644197751019,0.25,114.03,113.97,13.1603]
[1644197751218,1.60165495,114.04,113.97,19.4103]
[1644197751418,1.35165495,114.04,113.97,19.4103]
[1644197752717,1.60165495,114.04,113.97,19.4103]
[1644197754319,0.35,114.04,113.97,19.4103]
[1644197754718,1.35165495,114.04,113.97,19.4103]
[1644197755118,1.60165495,114.04,113.97,19.4103]
[1644197755518,0.35,114.04,113.97,19.4103]
[1644197756321,0.1,114.04,113.97,19.4103]
[1644197756523,1.35165495,114.04,113.97,19.4103]
[1644197756723,0.35,114.04,113.97,19.4103]
[1644197756925,1.60165495,114.04,113.97,19.4103]
[1644197757522,1.60165495,114.04,113.97,13.4103]
[1644197757722,0.35,114.04,113.97,13.4103]
[1644197757922,0.35,114.04,113.97,19.4103]
[1644197758123,0.1,114.04,113.97,19.4103]
[1644197766033,0.1,114.04,113.97,42.2787]
[1644197766631,4.64429764,114.07,113.97,42.2787]
[1644197766834,0.13754008,114.08,113.98,2.08001263]
[1644197767031,0.13754008,114.08,114.01,13.1526]
[1644197767234,0.13754008,114.08,114.02,55.74859928]
[1644197767434,0.13754008,114.08,114.02,57.82861191]
[1644197767632,0.13754008,114.08,114.02,64.07861191]
[1644197768032,0.13754008,114.08,114.03,13.1507]
[1644197768234,0.13754008,114.08,114.03,32.1407]
[1644197773441,0.13754008,114.08,114.03,40.7017]
[1644197773636,0.13754008,114.08,114.04,23.8416]
[1644197773835,0.13754008,114.08,114.05,25.8859]
[1644197774036,0.13754008,114.08,114.06,41.60531745]
[1644197774239,0.22432236,114.08,114.06,56.68222753]
[1644197774435,22.5125,114.17,114.07,68.0]
[1644197774636,0.08956394,114.19,114.08,12.74]
[1644197774838,18.2175824,114.2,114.11,13.1416]
[1644197774839,0.03344634,114.2,114.11,13.1416]
[1644197775036,0.03344634,114.2,114.12,41.50781689]
[1644197775236,4.41144634,114.2,114.12,41.50781689]
[1644197775439,4.41144634,114.2,114.1,43.8053]
[1644197775640,17.55524634,114.2,114.09,12.74]
[1644197775839,17.05524634,114.2,114.09,18.74]
[1644197776239,23.0208,114.19,114.09,18.74]
[1644197776540,23.0208,114.19,114.1,46.38033096]
[1644197776739,23.2708,114.19,114.1,46.38033096]
[1644197777543,23.2708,114.19,114.1,46.63033096]
[1644197777743,23.2708,114.19,114.1,59.77683096]
[1644197777942,23.2708,114.19,114.1,65.52683096]
[1644197778341,23.2708,114.19,114.1,19.1465]
[1644197778741,36.4154,114.19,114.1,6.0]
[1644197778941,40.7954,114.19,114.1,6.0]
[1644197779141,40.7954,114.19,114.07,29.0044]
[1644197779342,64.2815,114.19,114.08,47.90553378]
[1644197779649,77.0215,114.19,114.07,6.25]
[1644197779843,76.7715,114.19,114.07,6.0]
[1644197780045,76.7715,114.19,114.07,13.149]
[1644197780446,76.7715,114.19,114.08,38.02957813]
[1644197780647,72.3915,114.19,114.08,44.02957813]
[1644197781051,72.3915,114.19,114.08,66.84797813]
[1644197781251,72.3915,114.19,114.08,79.99497813]
[1644197781452,72.3915,114.19,114.08,38.02957813]
[1644197781752,77.0215,114.19,114.08,38.02957813]
[1644197782753,79.20833917,114.19,114.08,38.02957813]
[1644197783382,77.0215,114.19,114.08,38.02957813]
[1644197783579,25.8846,114.19,114.08,38.02957813]
[1644197783778,13.1446,114.19,114.08,59.2700132]
[1644197783978,13.1446,114.19,114.08,68.10737813]
[1644197784180,35.9638,114.19,114.08,68.10737813]
[1644197784983,36.2138,114.19,114.08,68.10737813]
[1644197787785,36.2138,114.19,114.09,24.5775]
[1644197787986,36.2138,114.19,114.09,37.7236]
[1644197788285,36.2138,114.19,114.09,37.9736]
[1644197788685,36.2138,114.19,114.09,43.9736]
[1644197792289,35.9638,114.19,114.09,43.9736]
[1644197793089,35.9638,114.19,114.09,43.7236]
[1644197793289,40.3438,114.19,114.09,43.7236]
[1644197793489,53.0838,114.19,114.09,24.5775]
[1644197793689,53.3338,114.19,114.09,24.5775]
[1644197793890,53.3338,114.19,114.08,48.70957813]
[1644197795096,48.9538,114.19,114.08,48.70957813]
[1644197795300,48.9538,114.19,114.08,38.02957813]
[1644197795494,51.46616339,114.19,114.05,24.3782]
[1644197795695,13.1518,114.15,114.07,6.0]
[1644197795893,37.8178,114.15,114.05,43.5288]
[1644197796093,38.0678,114.15,114.05,43.5288]
[1644197796494,38.0678,114.15,114.06,48.01349788]
[1644197796697,38.0678,114.15,114.06,54.01349788]
[1644197796897,50.8078,114.15,114.06,54.01349788]
[1644197797597,50.5578,114.15,114.06,54.01349788]
[1644197797799,50.5578,114.15,114.06,67.16369788]
[1644197797997,50.5578,114.15,114.06,54.01349788]
[1644197798403,50.5578,114.15,114.03,8.561]
[1644197798598,50.5578,114.15,114.03,8.811]
[1644197798599,52.74463917,114.15,114.03,8.811]
[1644197798801,52.74463917,114.15,114.03,8.561]
[1644197798802,4.382,114.14,114.03,8.561]
[1644197798998,13.1572,114.11,114.03,8.561]
[1644197799398,13.4072,114.11,114.03,56.04703201]
[1644197799799,35.8014,114.11,114.03,56.04703201]
[1644197800199,35.8014,114.11,114.03,56.29703201]
[1644197801200,35.8014,114.11,114.03,69.45083201]
[1644197801402,35.8014,114.11,114.03,75.45083201]
[1644197801801,35.8014,114.11,114.03,75.20083201]
[1644197802202,36.0514,114.11,114.03,75.45083201]
[1644197802400,36.0514,114.11,114.03,62.04703201]
[1644197802600,36.0514,114.11,114.03,56.04703201]
[1644197803400,35.8014,114.11,114.03,56.04703201]
[1644197804301,35.8014,114.11,114.03,8.561]
[1644197804702,36.0514,114.11,114.03,8.561]
[1644197806703,36.0514,114.11,114.03,8.811]
[1644197806903,36.0514,114.11,114.03,56.9135027]
[1644197807106,36.0514,114.11,114.03,56.6635027]
[1644197807906,36.0514,114.11,114.03,8.561]
[1644197808908,36.0514,114.11,114.03,56.68933611]
[1644197809708,36.0514,114.11,114.03,48.12833611]
[1644197810309,36.0514,114.11,114.03,48.37833611]
[1644197811209,36.0514,114.11,114.03,58.77833611]
[1644197811609,35.5514,114.11,114.03,58.77833611]
[1644197811809,12.9072,114.11,114.03,58.77833611]
[1644197813014,12.9072,114.11,114.03,71.93193611]
[1644197813424,13.1521,114.12,114.03,71.93193611]
[1644197813619,47.4658,114.13,114.04,2.09263507]
[1644197813820,47.4658,114.13,114.04,2.34263507]
[1644197814020,47.4658,114.13,114.04,8.34263507]
[1644197814219,47.4658,114.13,114.04,33.05623507]
[1644197814620,47.4658,114.13,114.05,2.09263507]
[1644197814819,47.4658,114.13,114.07,36.37430959]
[1644197815021,13.1486,114.16,114.07,36.62430959]
[1644197815222,115.01236339,114.18,114.08,2.09263507]
[1644197815420,112.5,114.18,114.08,2.09263507]
[1644197815620,28.32236339,114.2,114.08,6.25]
[1644197815822,28.32236339,114.2,114.08,29.4225]
[1644197816021,13.1456,114.18,114.09,13.147]
[1644197816222,13.3956,114.18,114.09,19.397]
[1644197816422,13.3956,114.18,114.09,19.147]
[1644197816623,13.3956,114.18,114.09,6.0]
[1644197817025,13.3956,114.18,114.08,29.1725]
[1644197817436,13.3956,114.18,114.08,23.1725]
[1644197817836,13.3956,114.18,114.08,29.1725]
[1644197818137,13.3956,114.18,114.08,42.3204]
[1644197818341,13.3956,114.18,114.08,42.5704]
[1644197819140,13.3956,114.18,114.08,42.3204]
[1644197819338,130.2756,114.18,114.08,6.0]
[1644197819539,130.2756,114.18,114.07,49.52360959]
[1644197819739,132.28796339,114.18,114.07,36.62430959]
[1644197819940,129.7756,114.18,114.07,36.37430959]
[1644197820138,22.7576,114.17,114.07,36.37430959]
[1644197820340,13.1503,114.14,114.07,36.37430959]
[1644197820739,13.4003,114.14,114.07,36.37430959]
[1644197821543,13.4003,114.14,114.07,36.62430959]
[1644197823147,12.9003,114.14,114.07,36.37430959]
[1644197823947,12.9003,114.14,114.05,60.7177]
[1644197824849,12.9003,114.14,114.06,36.92960056]
[1644197825248,12.9003,114.14,114.06,37.17960056]
[1644197825448,12.9003,114.14,114.06,36.92960056]
[1644197825649,12.9003,114.14,114.06,37.17960056]
[1644197825847,12.9003,114.14,114.06,36.92960056]
[1644197826248,12.9003,114.14,114.06,37.17960056]
[1644197827349,12.9003,114.14,114.06,50.32980056]
[1644197827548,12.9003,114.14,114.06,56.32980056]
[1644197837261,35.7953,114.15,114.06,56.32980056]
[1644197837461,4.381,114.18,114.06,71.16870867]
[1644197837661,0.25,114.15,114.07,22.9684]
[1644197837859,0.25,114.15,114.09,13.1463]
[1644197838060,0.25,114.15,114.1,34.20484655]
[1644197838359,25.061,114.17,114.1,34.45484655]
[1644197838960,0.25,114.17,114.1,47.60074655]
[1644197839164,22.7806,114.19,114.1,53.60074655]
[1644197840260,22.7806,114.19,114.11,12.74]
[1644197840460,22.7806,114.19,114.12,13.1427]
[1644197840660,22.7806,114.19,114.12,19.1427]
[1644197841060,2.61236339,114.21,114.12,19.1427]
[1644197841263,0.1,114.21,114.13,12.74]
[1644197841463,0.1,114.21,114.14,44.12069832]
[1644197841663,0.1,114.21,114.14,50.12069832]
[1644197841866,0.1,114.21,114.15,13.1399]
[1644197842063,0.1,114.21,114.15,19.1399]
[1644197842461,0.35,114.22,114.15,19.1399]
[1644197842662,0.1,114.23,114.15,19.3899]
[1644197842862,0.1,114.23,114.15,19.1399]
[1644197843063,2.51236339,114.25,114.15,6.0]
[1644197843263,5.10848768,114.25,114.15,6.0]
[1644197843561,15.35236339,114.25,114.14,50.12069832]
[1644197843862,13.1397,114.23,114.14,50.37069832]
[1644197844164,0.1,114.22,114.14,57.51189832]
[1644197844362,0.1,114.23,114.14,57.51189832]
[1644197845964,13.1409,114.22,114.14,57.51189832]
[1644197846167,0.1,114.21,114.14,57.51189832]
[1644197846567,0.1,114.23,114.14,57.51189832]
[1644197846966,0.1,114.23,114.14,74.11589832]
[1644197847371,0.1,114.23,114.17,13.1378]
[1644197847673,0.1,114.23,114.18,34.57977387]
[1644197849478,13.2396,114.23,114.14,10.604]
[1644197849683,17.218,114.22,114.09,22.904]
[1644197849878,43.8215,114.2,114.09,36.0504]
[1644197850080,43.8215,114.2,114.09,22.904]
[1644197850279,0.25,114.2,114.1,23.4886]
[1644197850479,0.25,114.2,114.13,44.43272534]
[1644197850780,13.393,114.2,114.13,44.43272534]
[1644197851396,0.25,114.2,114.13,44.43272534]
[1644197851596,0.25,114.2,114.13,50.43272534]
[1644197851796,0.1,114.22,114.13,50.43272534]
[1644197852194,0.35,114.23,114.14,24.1374]
[1644197852395,0.1,114.23,114.14,24.1374]
[1644197852594,0.1,114.23,114.14,30.3874]
[1644197853194,0.1,114.26,114.15,30.2577]
[1644197853695,0.1,114.27,114.15,36.5077]
[1644197853894,0.1,114.27,114.15,60.3459]
[1644197854499,107.90201488,114.32,114.15,60.3459]
[1644197854500,641.31835961,114.37,114.19,1.87570774]
[1644197854695,641.31835961,114.37,114.19,7.87570774]
[1644197854696,18.34571629,114.36,114.19,7.87570774]
[1644197854897,4.97586834,114.35,114.21,13.1318]
[1644197855101,0.04590288,114.36,114.21,19.1318]
[1644197855295,0.04590288,114.36,114.22,31.67918845]
[1644197855497,0.04590288,114.36,114.23,45.7399346]
[1644197855698,0.04590288,114.36,114.24,12.74]
[1644197856097,2.18683917,114.35,114.26,13.125]
[1644197856296,6.56083917,114.35,114.23,45.7399346]
[1644197856496,37.21702007,114.34,114.23,58.4799346]
[1644197856696,4.375,114.33,114.23,64.4799346]
[1644197856899,37.34832152,114.32,114.23,58.4799346]
[1644197857097,37.34832152,114.32,114.23,64.4799346]
[1644197857297,37.34832152,114.32,114.23,58.4799346]
[1644197857698,2.18683917,114.31,114.23,12.74]
[1644197857895,37.34832152,114.32,114.22,47.252]
[1644197858597,37.59832152,114.32,114.22,46.752]
[1644197858796,2.18683917,114.31,114.19,43.73622225]
[1644197859097,2.18683917,114.31,114.19,6.0]
[1644197859098,19.30283917,114.31,114.19,6.0]
[1644197859395,19.30283917,114.31,114.17,18.74]
[1644197859396,27.51376219,114.31,114.17,18.74]
[1644197859598,2.18683917,114.3,114.17,6.0]
[1644197859796,12.74,114.29,114.17,6.0]
[1644197859996,4.377,114.28,114.16,52.30308817]
[1644197860200,52.30392696,114.27,114.16,52.30308817]
[1644197860396,54.49076613,114.27,114.16,52.30308817]
[1644197860596,54.49076613,114.27,114.16,58.30308817]
[1644197860899,54.49076613,114.27,114.15,71.1079]
[1644197860900,65.69262696,114.27,114.15,48.3645]
[1644197861095,6.56383917,114.26,114.13,4.376]
[1644197861296,12.74,114.25,114.13,4.376]
[1644197861495,4.378,114.24,114.21,3.2573097]
[1644197861696,40.66123443,114.23,114.21,3.2573097]
[1644197861896,6.06439994,114.22,114.21,3.2573097]
[1644197862296,6.31439994,114.22,114.12,47.8934]
[1644197862496,6.06439994,114.22,114.12,58.2714]
[1644197862697,6.31439994,114.22,114.12,58.5214]
[1644197862997,6.31439994,114.22,114.12,71.6629]
[1644197863297,44.16798543,114.21,114.13,57.73261353]
[1644197863697,44.41798543,114.21,114.13,57.98261353]
[1644197863897,44.16798543,114.21,114.13,57.98261353]
[1644197864102,4.378,114.25,114.13,57.98261353]
[1644197864103,13.1402,114.25,114.15,40.25294673]
[1644197864296,4.378,114.28,114.15,40.50294673]
[1644197864497,4.377,114.29,114.16,2.09992034]
[1644197864699,24.7805,114.3,114.17,4.377]
[1644197864897,24.7805,114.3,114.17,51.1127]
[1644197865099,46.97826782,114.3,114.18,39.18427249]
[1644197865296,46.97826782,114.3,114.19,4.376]
[1644197865498,46.97826782,114.3,114.2,48.44378758]
[1644197865799,46.97826782,114.3,114.2,54.44378758]
[1644197866004,46.97826782,114.3,114.2,48.44378758]
[1644197866202,46.97826782,114.3,114.2,54.69378758]
[1644197866703,47.22826782,114.3,114.2,54.69378758]
[1644197866901,46.97826782,114.3,114.2,54.69378758]
[1644197867103,60.11276782,114.3,114.19,25.8736]
[1644197867304,61.79960699,114.3,114.17,59.4757]
[1644197867502,17.116,114.29,114.17,46.7357]
[1644197867905,2.18683917,114.28,114.17,46.7357]
[1644197868103,52.80500764,114.27,114.18,36.06535038]
[1644197868304,40.31500764,114.27,114.18,36.06535038]
[1644197868604,12.74,114.26,114.13,30.2573]
[1644197868808,4.378,114.25,114.13,25.8803]
[1644197869007,15.17683917,114.26,114.13,31.8803]
[1644197869207,19.55483917,114.26,114.13,31.8803]
[1644197869509,39.39557521,114.25,114.14,36.32105015]
[1644197869709,39.64557521,114.25,114.14,42.57105015]
[1644197869913,39.64557521,114.25,114.14,57.8071673]
[1644197870712,39.64557521,114.25,114.14,62.1851673]
[1644197870914,39.64557521,114.25,114.14,70.5471673]
[1644197871313,39.39557521,114.25,114.14,70.5471673]
[1644197872112,39.39557521,114.25,114.15,4.378]
[1644197872311,39.39557521,114.25,114.16,48.42551122]
[1644197872514,39.39557521,114.25,114.16,50.52242837]
[1644197872713,39.64557521,114.25,114.16,56.77242837]
[1644197872912,39.64557521,114.25,114.17,2.09691715]
[1644197873112,39.64557521,114.25,114.18,39.37704787]
[1644197873318,13.1392,114.26,114.18,39.62704787]
[1644197873511,13.1371,114.28,114.18,41.72396502]
[1644197873912,13.1371,114.28,114.18,47.72396502]
[1644197874612,12.74,114.29,114.18,47.72396502]
[1644197875013,36.0006,114.3,114.18,47.72396502]
[1644197875215,36.2506,114.3,114.18,47.72396502]
[1644197875412,42.17770293,114.29,114.18,47.72396502]
[1644197875813,42.42770293,114.29,114.18,47.72396502]
[1644197876013,0.25,114.29,114.18,60.85856502]
[1644197876212,0.25,114.29,114.18,73.59856502]
[1644197876414,0.25,114.29,114.18,73.34856502]
[1644197877014,13.1346,114.3,114.18,73.34856502]
[1644197877215,13.1324,114.32,114.18,77.72456502]
[1644197877424,116.876,114.33,114.18,77.72456502]
[1644197877425,112.5,114.33,114.19,23.3416]
[1644197877613,48.19320288,114.36,114.23,13.1294]
[1644197877816,9.14365463,114.34,114.23,25.8694]
[1644197878013,9.14365463,114.34,114.24,36.12112623]
[1644197878213,59.71547005,114.35,114.24,36.12112623]
[1644197878214,44.53614934,114.32,114.24,36.12112623]
[1644197879014,44.53614934,114.32,114.21,59.0777]
[1644197879214,44.53614934,114.32,114.21,51.9465]
[1644197879419,4.375,114.31,114.21,51.9465]
[1644197879717,4.625,114.31,114.21,51.9465]
[1644197879917,42.53661147,114.3,114.22,38.75994148]
[1644197880117,42.53661147,114.3,114.18,12.74]
[1644197880320,4.376,114.29,114.16,2.09691715]
[1644197880517,17.116,114.29,114.14,106.86393761]
[1644197880717,65.5553,114.29,114.14,106.86393761]
[1644197881018,45.41277247,114.28,114.15,37.60400208]
[1644197881216,47.412402,114.26,114.15,50.74220208]
[1644197881417,34.272602,114.26,114.16,12.74]
[1644197881616,34.272602,114.26,114.17,47.42023559]
[1644197882618,34.522602,114.26,114.17,47.42023559]
[1644197883017,47.662802,114.26,114.17,47.42023559]
[1644197885420,60.402802,114.26,114.17,47.42023559]
[1644197887121,61.65023538,114.26,114.17,47.42023559]
[1644197887519,61.65023538,114.26,114.16,23.2338]
[1644197888423,61.65023538,114.26,114.17,37.52899776]
[1644197888919,61.40023538,114.26,114.17,37.52899776]
[1644197889120,35.52003538,114.26,114.17,45.62283537]
[1644197889319,35.52003538,114.26,114.17,45.87283537]
[1644197889521,34.272602,114.26,114.17,45.87283537]
[1644197889725,34.272602,114.26,114.17,43.77899776]
[1644197889919,1.24743338,114.28,114.17,43.77899776]
[1644197890119,1.24743338,114.28,114.18,38.89593761]
[1644197890319,1.24743338,114.3,114.18,105.81753761]
[1644197890521,1.24743338,114.3,114.19,2.09383761]
[1644197890722,1.24743338,114.31,114.2,12.74]
[1644197890920,43.23566415,114.3,114.21,45.15836278]
[1644197891125,43.23566415,114.3,114.21,51.15836278]
[1644197891331,43.48566415,114.3,114.21,51.40836278]
[1644197891520,43.48566415,114.3,114.21,53.50220039]
[1644197891720,44.73309753,114.3,114.21,51.15836278]
[1644197891920,44.73309753,114.3,114.21,45.15836278]
[1644197892322,41.47578783,114.3,114.21,45.15836278]
[1644197892722,41.47578783,114.3,114.21,45.40836278]
[1644197893024,41.47578783,114.3,114.2,24.0621]
[1644197893222,1.24743338,114.28,114.2,30.0621]
[1644197893423,1.24743338,114.28,114.2,6.0]
[1644197893723,1.49743338,114.28,114.18,28.8998]
[1644197894126,38.15718829,114.28,114.19,45.68434652]
[1644197894323,36.65975491,114.28,114.19,45.68434652]
[1644197894522,36.65975491,114.28,114.19,66.51818413]
[1644197894725,36.65975491,114.28,114.19,66.76818413]
[1644197895426,36.90975491,114.28,114.19,64.42434652]
[1644197895828,38.15718829,114.28,114.19,64.42434652]
[1644197896026,38.15718829,114.28,114.19,77.55724652]
[1644197896228,36.90975491,114.28,114.19,77.55724652]
[1644197897231,36.90975491,114.28,114.19,77.80724652]
[1644197897427,36.90975491,114.28,114.19,79.90108413]
[1644197898429,36.90975491,114.28,114.19,66.76818413]
[1644197898628,36.90975491,114.28,114.19,66.51818413]
[1644197898834,38.15718829,114.28,114.19,58.42434652]
[1644197900456,38.15718829,114.28,114.18,46.7638]
[1644197900759,1.24743338,114.26,114.16,4.376]
[1644197901054,16.17427255,114.25,114.16,4.376]
[1644197901257,20.55227255,114.25,114.16,4.376]
[1644197901454,34.26975728,114.24,114.17,41.8392182]
[1644197901755,0.25,114.24,114.17,41.8392182]
[1644197902753,0.25,114.24,114.17,42.0892182]
[1644197902953,0.25,114.25,114.17,42.0892182]
[1644197903153,0.25,114.26,114.17,42.0892182]
[1644197903357,1.24743338,114.28,114.17,48.0892182]
[1644197903557,1.24743338,114.29,114.18,25.57003761]